bitfinex-derivatives/quotes_SOLF0:USTF0_20251125
["timestamp","ask_amount","ask_price","bid_price","bid_amount"]
[1764054537085,2.95755373,137.94,137.9,0.05409031]
[1764054541684,3.01,137.91,137.9,0.00409031]
[1764054544482,3.01,137.89,137.87,24.82]
[1764054544688,3.01,137.89,137.84,46.5314]
[1764054544886,3.01,137.89,137.82,21.62035286]
[1764054545095,3.01,137.89,137.81,24.8]
[1764054545478,0.05545888,137.86,137.84,0.04962619]
[1764054545684,3.06216052,137.86,137.84,0.04962619]
[1764054551197,3.01,137.85,137.78,6.534]
[1764054551398,3.01,137.85,137.78,46.534]
[1764054552202,3.01,137.82,137.8,0.05429374]
[1764054553698,3.06152456,137.83,137.8,0.05429374]
[1764054556115,3.06152456,137.83,137.8,6.58759374]
[1764054564115,0.05152456,137.83,137.81,6.5328]
[1764054564319,0.05152456,137.83,137.81,46.5328]
[1764054572728,0.05152456,137.83,137.81,48.60724734]
[1764054574022,3.0,137.9,137.82,101.6155]
[1764054574222,3.0,137.9,137.84,2.07444734]
[1764054575125,3.05237789,137.88,137.86,0.04885308]
[1764054576028,3.05237789,137.88,137.86,6.57945308]
[1764054577230,3.05237789,137.88,137.86,8.65390042]
[1764054577231,0.05237789,137.88,137.86,8.65390042]
[1764054578925,0.05237789,137.88,137.87,24.8]
[1764054580239,57.90977079,138.22,137.87,24.8]
[1764054580240,3.0,137.93,137.88,101.5717]
[1764054580437,3.0,137.93,137.89,2.07444734]
[1764054580734,2.07444734,137.98,137.92,6.5276]
[1764054580735,3.0,137.96,137.92,6.5276]
[1764054581322,3.0,137.94,137.93,0.04684555]
[1764054582532,0.05046952,137.95,137.93,8.64819289]
[1764054583637,3.05046952,137.95,137.93,6.57374555]
[1764054584338,3.05046952,137.95,137.93,0.04684555]
[1764054587636,3.05046952,137.95,137.9,6.5284]
[1764054587837,3.05046952,137.95,137.88,66.87444734]
[1764054588134,2.93,137.93,137.85,125.06411417]
[1764054588538,0.05357574,137.9,137.88,0.04591226]
[1764054589134,0.05357574,137.9,137.88,6.57541226]
[1764054589328,2.98357574,137.9,137.88,6.57541226]
[1764054592447,2.98357574,137.9,137.88,0.04591226]
[1764054593446,2.98357574,137.9,137.88,6.57551226]
[1764054597956,2.98357574,137.9,137.88,0.04591226]
[1764054598858,2.98357574,137.9,137.85,40.0]
[1764054599062,2.98357574,137.9,137.84,71.3312]
[1764054599255,2.98357574,137.9,137.84,64.8]
[1764054599458,2.98357574,137.9,137.85,6.531]
[1764054599650,2.98357574,137.9,137.84,24.8]
[1764054599950,2.98357574,137.9,137.86,0.05061687]
[1764054600753,9.51237574,137.9,137.86,0.05061687]
[1764054600952,3.13,137.87,137.86,0.05061687]
[1764054601362,3.13,137.87,137.8,166.4286]
[1764054601556,3.13,137.87,137.8,24.8]
[1764054602262,3.13,137.84,137.82,0.04808797]
[1764054602466,3.13,137.84,137.82,6.58028797]
[1764054602759,0.05585747,137.85,137.82,0.04808797]
[1764054602951,3.18585747,137.85,137.82,0.04808797]
[1764054604263,3.18585747,137.85,137.83,6.5318]
[1764054607659,3.18585747,137.85,137.82,0.04808797]
[1764054610957,3.18585747,137.85,137.82,6.58048797]
[1764054612959,3.18585747,137.85,137.83,6.532]
[1764054614065,3.18585747,137.85,137.82,0.04808797]
[1764054614264,3.13,137.84,137.82,0.04808797]
[1764054628879,3.13,137.84,137.82,6.58048797]
[1764054631382,3.13,137.84,137.82,0.04808797]
[1764054632072,3.13,137.84,137.82,6.58038797]
[1764054634178,3.13,137.84,137.83,6.532]
[1764054640678,3.13,137.84,137.82,0.04808797]
[1764054641780,8.24912707,137.83,137.82,0.04808797]
[1764054642288,8.25196334,137.83,137.82,0.04808797]
[1764054642493,2.88,137.82,137.79,40.0]
[1764054642686,2.88,137.82,137.77,40.0]
[1764054643683,2.92764933,137.81,137.78,0.04996961]
[1764054644086,2.92764933,137.81,137.79,6.5339]
[1764054645491,2.92764933,137.81,137.78,0.04996961]
[1764054646599,2.88,137.79,137.78,0.04996961]
[1764054665920,3.19764933,137.81,137.78,0.04996961]
[1764054667016,3.19764933,137.81,137.78,6.58436961]
[1764054668415,0.04764933,137.81,137.79,6.5339]
[1764054669010,3.19764933,137.81,137.78,0.04996961]
[1764054671025,3.19764933,137.81,137.78,6.58436961]
[1764054680831,0.04764933,137.81,137.79,6.5339]
[1764054683025,0.04764933,137.81,137.8,6.5334]
[1764054684321,2.87,137.87,137.82,6.5323]
[1764054684535,2.87,137.85,137.82,6.5323]
[1764054685334,2.9173041,137.85,137.82,6.58554037]
[1764054688635,0.0473041,137.85,137.83,6.5319]
[1764054689236,2.87,137.9,137.85,6.5308]
[1764054689431,8.24092157,137.89,137.85,6.5308]
[1764054689632,2.87,137.89,137.85,6.5308]
[1764054690233,2.87,137.89,137.86,6.5304]
[1764054690439,2.91955476,137.89,137.86,6.5821328]
[1764054691941,0.04955476,137.89,137.87,6.5299]
[1764054692839,2.87,137.93,137.86,0.0517328]
[1764054693143,5.35035273,137.94,137.9,6.5286]
[1764054693341,5.35035273,137.94,137.87,129.62068467]
[1764054693342,2.87,137.94,137.88,101.5684]
[1764054693543,2.87,137.97,137.9,101.5564]
[1764054693745,5.35109272,137.96,137.9,101.5564]
[1764054693947,0.05098341,137.94,137.92,0.05418295]
[1764054694136,0.05098341,137.94,137.92,6.58168295]
[1764054694639,0.05098341,137.94,137.93,2.07076655]
[1764054695346,2.87,137.97,137.93,8.59766655]
[1764054696330,0.050638,137.96,137.94,0.04787372]
[1764054699436,0.050638,137.96,137.94,6.57447372]
[1764054700249,0.050638,137.96,137.94,46.57447372]
[1764054705449,0.050638,137.96,137.94,6.57447372]
[1764054706642,2.920638,137.96,137.94,6.57447372]
[1764054708152,0.050638,137.96,137.94,6.57447372]
[1764054711453,0.050638,137.96,137.94,46.57447372]
[1764054712454,3.090638,137.96,137.94,46.57447372]
[1764054715263,0.050638,137.96,137.94,46.57447372]
[1764054717562,0.050638,137.96,137.94,6.57447372]
[1764054719266,3.120638,137.96,137.94,6.57447372]
[1764054720968,3.120638,137.96,137.94,0.04787372]
[1764054725569,8.3683105,138.0,137.97,6.5251]
[1764054725868,3.07,138.01,137.97,2.07076655]
[1764054726066,3.07,138.05,137.97,2.07076655]
[1764054726263,3.07,138.03,137.97,2.07076655]
[1764054726771,0.05013437,138.01,137.99,6.57012326]
[1764054728966,3.12013437,138.01,137.99,6.57012326]
[1764054729368,0.05013437,138.01,137.99,6.57012326]
[1764054731775,3.12013437,138.01,137.99,6.57012326]
[1764054731977,0.05013437,138.01,137.99,6.57012326]
[1764054734876,3.12013437,138.01,137.99,6.57012326]
[1764054735077,3.12013437,138.01,137.99,0.04582326]
[1764054742876,9.64373437,138.01,137.99,0.04582326]
[1764054743077,3.1,138.0,137.99,0.04582326]
[1764054751283,3.15013437,138.01,137.99,0.04582326]
[1764054754798,3.15013437,138.01,137.99,6.57012326]
[1764054756499,3.15013437,138.01,137.99,0.04582326]
[1764054763408,3.15013437,138.01,137.99,6.57012326]
[1764054765104,3.15013437,138.01,137.99,0.04582326]
[1764054766202,8.39660786,138.0,137.99,0.04582326]
[1764054766513,3.1,137.98,137.87,104.81138846]
[1764054766699,3.1,137.94,137.87,24.76]
[1764054767301,3.03133881,137.92,137.89,0.0462056]
[1764054768918,9.55923881,137.92,137.89,0.0462056]
[1764054769104,2.98,137.91,137.89,0.0462056]
[1764054771498,2.98,137.91,137.82,143.17321056]
[1764054771708,2.98,137.91,137.84,6.5312]
[1764054772503,2.98,137.91,137.86,0.05493421]
[1764054772709,2.98,137.88,137.86,0.05493421]
[1764054774213,3.02853822,137.89,137.86,0.05493421]
[1764054781116,3.02853822,137.89,137.86,6.58533421]
[1764054781324,0.04853822,137.89,137.86,0.05493421]
[1764054781524,2.88,137.94,137.89,101.5644]
[1764054781822,2.88,137.96,137.9,101.5575]
[1764054782210,2.88,137.99,137.92,101.5426]
[1764054782414,2.88,137.99,137.91,104.77948846]
[1764054782618,0.04820196,137.96,137.94,0.05025107]
[1764054782818,2.92820196,137.96,137.94,0.05025107]
[1764054784233,2.92820196,137.96,137.94,6.57685107]
[1764054786622,0.04820196,137.96,137.94,6.57685107]
[1764054788923,2.88,137.99,137.96,6.5254]
[1764054789825,2.93356707,137.99,137.96,6.5254]
[1764054794029,2.93356707,137.99,137.94,0.05025107]
[1764054794933,2.88,137.98,137.94,0.05025107]
[1764054799338,2.88,137.98,137.94,6.57685107]
[1764054799834,2.88,137.98,137.95,6.5263]
[1764054800034,3.07356707,137.99,137.94,0.05025107]
[1764054801037,3.07356707,137.99,137.97,6.5253]
[1764054806039,3.07356707,137.99,137.95,6.526]
[1764054806242,3.07356707,137.99,137.94,40.05025107]
[1764054807043,3.07356707,137.99,137.96,6.5258]
[1764054812243,3.07356707,137.99,137.97,6.5253]
[1764054813741,0.05356707,137.99,137.97,6.5253]
[1764054815443,0.05356707,137.99,137.98,6.5249]
[1764054826255,3.07356707,137.99,137.97,40.05451996]
[1764054826458,4.51356707,137.99,137.91,2.06943584]
[1764054826661,3.02,137.97,137.89,88.63713651]
[1764054826857,3.02,137.97,137.89,190.19923651]
[1764054827157,3.02,137.97,137.92,6.5276]
[1764054827552,3.08455492,137.96,137.93,0.04929107]
[1764054828363,0.05455492,137.96,137.93,2.11872691]
[1764054829961,0.05455492,137.96,137.94,6.5266]
[1764054830564,3.08455492,137.96,137.94,6.5266]
[1764054833555,0.05455492,137.96,137.94,6.5266]
[1764054841570,0.05455492,137.96,137.94,46.5266]
[1764054845172,0.05455492,137.96,137.94,6.5266]
[1764054847677,0.05455492,137.96,137.95,2.06943584]
[1764054850882,0.05455492,137.96,137.95,42.06943584]
[1764054851086,3.09,138.02,137.96,101.5091]
[1764054851385,3.09,138.02,137.98,2.06943584]
[1764054851984,0.05387397,138.01,137.99,0.0550634]
[1764054852191,3.14387397,138.01,138.0,6.5239]
[1764054852391,0.05387397,138.01,138.0,6.5239]
[1764054852977,3.14387397,138.01,138.0,6.5239]
[1764054853383,3.14387397,138.01,137.99,0.0550634]
[1764054853890,0.05387397,138.01,137.99,0.0550634]
[1764054854288,0.05387397,138.01,137.99,6.5793634]
[1764054855586,0.05387397,138.01,138.0,26.82943584]
[1764054858686,0.05387397,138.01,138.0,66.82943584]
[1764054860184,2.94387397,138.01,138.0,64.76]
[1764054861995,0.05387397,138.01,138.0,64.76]
[1764054863099,0.05387397,138.01,138.0,24.76]
[1764054864698,2.94387397,138.01,137.99,6.5793634]
[1764054865501,0.05387397,138.01,137.99,6.5793634]
[1764054867590,0.05387397,138.01,137.99,8.64879924]
[1764054874001,0.05387397,138.01,137.99,6.5793634]
[1764054874402,2.94387397,138.01,137.99,6.5793634]
[1764054875107,0.05387397,138.01,137.99,6.5793634]
[1764054877296,0.05387397,138.01,138.0,24.76]
[1764054877611,2.94387397,138.01,138.0,24.76]
[1764054877803,0.05387397,138.01,138.0,24.76]
[1764054878609,4.38387397,138.01,137.99,0.0550634]
[1764054878806,2.89,138.0,137.93,24.76]
[1764054879507,2.89,137.99,137.9,24.76]
[1764054879701,3.23308061,138.0,137.9,24.76]
[1764054879702,2.89,137.95,137.93,0.04750496]
[1764054882197,9.4165,137.95,137.93,0.04750496]
[1764054882396,2.89,137.94,137.93,0.04750496]
[1764054882910,2.89,137.93,137.9,24.76]
[1764054883505,2.89,137.93,137.88,6.5293]
[1764054883905,2.89,137.91,137.89,0.05154964]
[1764054901629,3.16,137.87,137.81,102.0]
[1764054901925,3.16,137.87,137.79,21.29544958]
[1764054902126,3.16,137.87,137.77,64.78]
[1764054902622,3.16,137.82,137.81,0.04857133]
[1764054909231,0.04984897,137.83,137.81,0.04857133]
[1764054909430,3.20984897,137.83,137.81,0.04857133]
[1764054918133,0.04984897,137.83,137.81,0.04857133]
[1764054918334,0.04984897,137.83,137.81,6.58117133]
[1764054919930,2.99984897,137.83,137.81,6.58117133]
[1764054920245,2.99984897,137.83,137.81,0.04857133]
[1764054923042,2.99984897,137.83,137.81,6.58147133]
[1764054929953,0.04984897,137.83,137.81,6.58147133]
[1764054932258,0.04984897,137.83,137.81,31.38147133]
[1764054934160,0.04984897,137.83,137.81,71.38147133]
[1764054934763,2.99984897,137.83,137.81,0.04857133]
[1764054943159,8.43634461,137.82,137.81,6.58147133]
[1764054945972,8.43634461,137.82,137.81,0.04857133]
[1764054947567,5.48634461,137.82,137.81,0.04857133]
[1764054947774,0.04984897,137.83,137.82,6.5325]
[1764054947961,5.50263097,137.83,137.82,6.5325]
[1764054948270,8.40263097,137.83,137.82,6.5325]
[1764054949271,2.9,137.82,137.81,0.04857133]
[1764054952268,8.35428266,137.82,137.81,0.04857133]
[1764054952470,2.9,137.81,137.78,6.5339]
[1764054952772,2.9,137.79,137.78,6.5339]
[1764054952974,8.35428266,137.79,137.78,6.5339]
[1764054953273,2.9,137.79,137.78,6.5339]
[1764054953575,2.95462439,137.8,137.78,6.5339]
[1764054955575,2.95462439,137.8,137.77,24.83052514]
[1764054956170,2.95462439,137.8,137.77,31.36522514]
[1764054956669,2.95462439,137.8,137.77,6.58522514]
[1764054956871,3.17,137.78,137.77,0.05052514]
[1764054957068,8.51395491,137.78,137.77,0.05052514]
[1764054957268,3.17,137.78,137.77,0.05052514]
[1764054957575,3.17,137.77,137.72,24.8]
[1764054958476,3.17,137.75,137.73,0.04805146]
[1764054958977,3.21894571,137.76,137.74,6.5361]
[1764054959269,3.21894571,137.76,137.7,13.5452221]
[1764054959270,3.21894571,137.76,137.7,101.7045]
[1764054960062,3.17,137.74,137.72,6.58872091]
[1764054960262,3.17,137.74,137.72,0.05162091]
[1764054960473,3.17,137.74,137.67,103.79646346]
[1764054960671,3.17,137.72,137.67,6.5394]
[1764054960975,3.17,137.71,137.66,128.60766346]
[1764054961477,0.04806623,137.7,137.66,128.60766346]
[1764054961675,3.21806623,137.7,137.66,128.60766346]
[1764054962074,3.21806623,137.7,137.68,6.5388]
[1764054962265,0.04806623,137.7,137.68,6.5388]
[1764054962464,0.04806623,137.7,137.68,8.61426346]
[1764054964666,0.04806623,137.7,137.68,6.5388]
[1764054966174,0.04806623,137.7,137.68,8.61426346]
[1764054966683,0.04806623,137.7,137.69,24.8]
[1764054968785,3.21806623,137.7,137.69,24.8]
[1764054969083,3.21806623,137.7,137.63,24.8]
[1764054969477,3.21806623,137.7,137.65,6.5404]
[1764054969872,3.21806623,137.7,137.64,103.82356346]
[1764054970077,0.04806623,137.7,137.66,103.80596346]
[1764054970386,0.04806623,137.7,137.68,2.07546346]
[1764054971080,0.04806623,137.7,137.69,24.8]
[1764054971385,3.17,137.76,137.7,101.7051]
[1764054971586,3.17,137.76,137.71,2.07546346]
[1764054972379,3.2229729,137.75,137.72,0.05369157]
[1764054973082,0.0529729,137.75,137.72,101.74129157]
[1764054973287,3.2229729,137.75,137.72,0.05369157]
[1764054974083,3.2229729,137.75,137.73,6.5365]
[1764054975382,0.0529729,137.75,137.73,6.5365]
[1764054976380,0.0529729,137.75,137.73,8.61196346]
[1764054978888,3.0429729,137.75,137.73,8.61196346]
[1764054979496,3.0429729,137.75,137.73,6.5365]
[1764054980193,3.0429729,137.75,137.72,0.05369157]
[1764054984202,3.0429729,137.75,137.72,6.59079157]
[1764054987003,3.0429729,137.75,137.72,0.05369157]
[1764054990494,9.5788729,137.75,137.72,0.05369157]
[1764054990903,2.99,137.74,137.72,0.05369157]
[1764054995105,2.99,137.74,137.72,6.59089157]
[1764054995824,0.0529729,137.75,137.73,6.5367]
[1764054997116,0.0529729,137.75,137.73,8.61216346]
[1764055000624,0.0529729,137.75,137.73,6.5367]
[1764055003725,2.99,137.8,137.76,6.5351]
[1764055003933,8.25273945,137.79,137.76,6.5351]
[1764055004121,2.99,137.79,137.76,6.5351]
[1764055004722,3.04453036,137.79,137.76,6.58807295]
[1764055008429,0.05453036,137.79,137.77,6.5348]
[1764055009227,3.04453036,137.79,137.76,0.05297295]
[1764055009533,2.99,137.77,137.76,0.05297295]
[1764055010634,8.25221775,137.77,137.73,24.8]
[1764055010929,2.99,137.75,137.69,24.82]
[1764055011737,3.03688672,137.73,137.71,6.58789721]
[1764055011933,3.04232131,137.73,137.71,0.05059721]
[1764055014232,0.05232131,137.73,137.71,0.05059721]
[1764055014933,0.05232131,137.73,137.71,6.58819721]
[1764055020234,2.99232131,137.73,137.71,46.58819721]
[1764055020437,2.99232131,137.73,137.71,40.05059721]
[1764055020833,2.99232131,137.73,137.71,0.05059721]
[1764055021234,2.99232131,137.73,137.67,6.5395]
[1764055021541,2.94,137.71,137.67,6.5395]
[1764055021743,2.94,137.71,137.65,31.3603]
[1764055022135,2.94,137.7,137.65,31.3603]
[1764055022335,0.05260478,137.69,137.65,31.3603]
[1764055022837,0.05260478,137.69,137.66,6.5399]
[1764055023043,0.05260478,137.69,137.65,24.82]
[1764055024145,0.05260478,137.69,137.67,6.5395]
[1764055030247,0.05260478,137.69,137.67,9.78513963]
[1764055030450,2.94,137.75,137.71,6.5375]
[1764055030652,3.24563963,137.79,137.69,126.5318]
[1764055030853,2.94,137.77,137.73,6.5366]
[1764055031043,2.94,137.8,137.72,101.6878]
[1764055031440,0.04866728,137.77,137.75,0.05415879]
[1764055032048,0.04866728,137.77,137.75,6.58985879]
[1764055033746,2.94,137.83,137.76,104.90623963]
[1764055033946,5.20814955,137.82,137.77,24.82]
[1764055034147,2.94,137.83,137.77,24.82]
[1764055034341,2.94,137.81,137.77,24.82]
[1764055034844,0.0551117,137.8,137.78,0.0551747]
[1764055035854,2.9951117,137.8,137.78,0.0551747]
[1764055036752,0.0551117,137.8,137.78,0.0551747]
[1764055037551,2.9851117,137.8,137.78,0.0551747]
[1764055038844,0.0551117,137.8,137.78,0.0551747]
[1764055039456,2.9851117,137.8,137.78,0.0551747]
[1764055039768,0.0551117,137.8,137.78,0.0551747]
[1764055042060,0.0551117,137.8,137.78,6.5894747]
[1764055047063,0.0551117,137.8,137.78,46.5894747]
[1764055049167,0.0551117,137.8,137.78,71.4094747]
[1764055051274,2.9851117,137.8,137.78,71.4094747]
[1764055052372,0.0551117,137.8,137.78,71.4094747]
[1764055053068,2.93,137.85,137.79,101.6391]
[1764055053267,2.93,137.85,137.79,144.88473963]
[1764055053864,0.05250533,137.83,137.79,144.88473963]
[1764055054064,2.98250533,137.83,137.79,43.24563963]
[1764055054265,0.05250533,137.83,137.79,43.24563963]
[1764055055072,0.05250533,137.83,137.81,6.5325]
[1764055056071,0.05250533,137.83,137.81,31.3525]
[1764055057764,2.98250533,137.83,137.81,31.3525]
[1764055058076,2.98250533,137.83,137.79,141.6346]
[1764055058077,2.98250533,137.83,137.79,6.5335]
[1764055059571,2.98250533,137.83,137.8,6.5333]
[1764055060080,0.05250533,137.83,137.81,6.5329]
[1764055060568,2.93,137.86,137.83,6.5317]
[1764055061678,2.9812818,137.86,137.83,6.58664481]
[1764055062465,2.9812818,137.86,137.84,6.5313]
[1764055063683,0.0512818,137.86,137.84,6.5313]
[1764055065277,2.9812818,137.86,137.83,0.05494481]
[1764055065877,2.9812818,137.86,137.84,6.5315]
[1764055069284,2.9812818,137.86,137.83,0.05494481]
[1764055071083,9.5120818,137.86,137.83,0.05494481]
[1764055071285,2.99,137.85,137.83,0.05494481]
[1764055073183,2.99,137.84,137.83,0.05494481]
[1764055073886,2.99,137.83,137.79,40.0]
[1764055074089,2.99,137.83,137.77,66.89436296]
[1764055074886,0.05508481,137.81,137.79,0.05394098]
[1764055075094,0.05508481,137.81,137.79,6.58774098]
[1764055091721,0.05508481,137.81,137.79,0.05394098]
[1764055091722,3.09508481,137.81,137.79,0.05394098]
[1764055091917,3.04,137.79,137.71,101.6941]
[1764055092115,3.04,137.77,137.71,101.6941]
[1764055092420,3.04,137.77,137.73,6.5363]
[1764055092814,0.05073463,137.76,137.74,0.04716637]
[1764055093017,3.09073463,137.76,137.74,0.04716637]
[1764055093413,0.05073463,137.76,137.74,6.58326637]
[1764055094012,0.05073463,137.76,137.75,2.07436296]
[1764055095530,0.05073463,137.76,137.74,6.58326637]
[1764055096130,3.09073463,137.76,137.74,6.58326637]
[1764055097219,0.05073463,137.76,137.74,6.58326637]
[1764055103331,0.05073463,137.76,137.74,46.58326637]
[1764055104729,2.97073463,137.76,137.74,40.04716637]
[1764055104926,2.97073463,137.76,137.74,0.04716637]
[1764055105727,0.05073463,137.76,137.69,85.74884296]
[1764055106430,2.97073463,137.76,137.69,85.74884296]
[1764055106632,2.97073463,137.76,137.71,0.05258864]
[1764055107028,2.97073463,137.76,137.72,6.5372]
[1764055107929,5.04509759,137.76,137.71,0.05258864]
[1764055108135,2.92,137.73,137.71,0.05258864]
[1764055110323,9.4568,137.73,137.71,0.05258864]
[1764055110636,2.92,137.72,137.71,0.05258864]
[1764055115331,2.92,137.7,137.69,18.85448]
[1764055115939,2.92,137.7,137.69,16.34590277]
[1764055118537,2.92,137.7,137.69,6.77590277]
[1764055118947,2.92,137.68,137.64,2.97]
[1764055119249,0.04589252,137.67,137.64,2.97]
[1764055119446,2.92,137.66,137.63,2.97]
[1764055119834,2.92,137.66,137.62,2.97]
[1764055121150,9.4603,137.66,137.62,2.97]
[1764055121840,9.4603,137.66,137.63,2.97]
[1764055122753,9.4603,137.66,137.63,21.81373]
[1764055123251,2.92,137.66,137.63,28.35513]
[1764055125640,2.92,137.66,137.63,21.81373]
[1764055129653,3.09,137.65,137.63,21.81373]
[1764055131260,9.6302,137.66,137.63,21.81373]
[1764055131560,3.09,137.65,137.63,21.81373]
[1764055131960,3.09,137.65,137.63,18.84373]
[1764055133358,3.09,137.64,137.63,18.84373]
[1764055133861,3.09,137.64,137.63,4.10539919]
[1764055136364,3.09,137.64,137.63,0.91539919]
[1764055136968,3.09,137.64,137.63,9.919e-05]
[1764055139371,9.75872164,137.64,137.63,9.919e-05]
[1764055140569,8.29872164,137.64,137.63,9.919e-05]
[1764055140786,38.39811057,137.64,137.63,9.919e-05]
[1764055141164,2.9,137.58,137.55,2.89]
[1764055141376,2.94760674,137.58,137.53,2.89]
[1764055141672,2.94760674,137.58,137.51,2.89]
[1764055141673,2.9,137.56,137.51,2.89]
[1764055141976,2.94635384,137.55,137.51,2.89]
[1764055142778,9.446,137.54,137.51,2.89]
[1764055143666,9.446,137.54,137.47,2.89]
[1764055143667,2.9,137.53,137.47,2.89]
[1764055143871,2.95489702,137.51,137.44,2.89]
[1764055144168,2.95267365,137.49,137.39,2.89]
[1764055144368,2.95325571,137.45,137.4,2.89]
[1764055144563,0.05325571,137.45,137.4,2.89]
[1764055144964,0.05325571,137.45,137.41,2.89]
[1764055145675,2.95325571,137.45,137.41,2.89]
[1764055145877,2.95325571,137.45,137.37,2.89]
[1764055146271,9.50355571,137.45,137.37,2.89]
[1764055146577,2.95325571,137.45,137.37,2.89]
[1764055146972,2.95325571,137.45,137.38,2.89]
[1764055147379,0.05325571,137.45,137.38,9.4431]
[1764055147674,0.05325571,137.45,137.39,2.89]
[1764055148174,2.95325571,137.45,137.39,2.89]
[1764055149473,0.05325571,137.45,137.39,2.89]
[1764055150670,0.05325571,137.45,137.39,9.4427]
[1764055150871,0.05325571,137.45,137.4,2.89]
[1764055151073,0.05325571,137.45,137.41,2.89]
[1764055151278,0.05325571,137.45,137.42,2.89]
[1764055153777,0.05325571,137.45,137.42,9.4412]
[1764055153976,0.05325571,137.45,137.43,2.89]
[1764055156585,0.00325571,137.45,137.43,2.89]
[1764055156882,6.5479,137.5,137.44,2.89]
[1764055157082,2.9,137.51,137.44,2.89]
[1764055157083,2.9,137.51,137.45,3.03]
[1764055157885,0.05118439,137.49,137.47,3.0829158]
[1764055161587,0.05118439,137.49,137.48,3.03]
[1764055164088,9.7159,137.54,137.49,3.03]
[1764055164986,6.60019246,137.53,137.5,3.0824173]
[1764055166383,0.05369246,137.53,137.5,3.0824173]
[1764055171487,0.05369246,137.53,137.5,9.6300173]
[1764055171688,0.05369246,137.53,137.51,3.03]
[1764055172893,0.05369246,137.53,137.51,9.5771]
[1764055173086,0.05369246,137.53,137.52,3.03]
[1764055175584,0.05369246,137.53,137.5,40.0524173]
[1764055175896,3.22369246,137.53,137.5,0.0524173]
[1764055176293,9.7171,137.52,137.5,0.0524173]
[1764055178292,3.17,137.51,137.5,0.0524173]
[1764055179588,6.5471,137.52,137.5,3.0824173]
[1764055179794,0.05369246,137.53,137.5,3.0824173]
[1764055180688,3.17,137.52,137.5,0.0524173]
[1764055180888,3.17,137.52,137.5,3.0824173]
[1764055181493,9.7168,137.52,137.5,3.0824173]
[1764055182997,9.7168,137.52,137.5,0.0524173]
[1764055185700,9.7168,137.52,137.5,3.0824173]
[1764055185902,0.05369246,137.53,137.5,3.0824173]
[1764055186401,3.17,137.52,137.5,3.0824173]
[1764055186606,3.17,137.52,137.5,0.0524173]
[1764055187100,8.4753212,137.51,137.5,0.0524173]
[1764055187708,13.73817752,137.51,137.5,0.0524173]
[1764055190521,6.5469,137.52,137.5,2.9224173]
[1764055190721,9.5369,137.52,137.5,2.9224173]
[1764055191217,2.99,137.51,137.5,0.0524173]
[1764055191620,9.5369,137.52,137.5,2.9224173]
[1764055191817,9.5369,137.52,137.5,0.0524173]
[1764055192016,2.99,137.51,137.5,0.0524173]
[1764055192414,6.5469,137.52,137.5,0.0524173]
[1764055192616,9.5369,137.52,137.5,0.0524173]
[1764055196114,5.27664543,137.51,137.5,0.0524173]
[1764055196716,9.5369,137.52,137.5,0.0524173]
[1764055197119,5.27458994,137.51,137.5,0.0524173]
[1764055198215,5.27458994,137.51,137.5,3.1624173]
[1764055199424,5.27458994,137.51,137.5,0.0524173]
[1764055199624,5.27458994,137.51,137.5,3.1624173]
[1764055200325,10.77742631,137.51,137.5,3.1624173]
[1764055200520,13.91742631,137.51,137.5,0.0524173]
[1764055218442,10.77742631,137.51,137.5,2.9324173]
[1764055218740,13.69997,137.51,137.5,0.0524173]
[1764055227045,10.77997,137.51,137.5,2.9324173]
[1764055234141,13.69997,137.51,137.5,0.0524173]
[1764055237555,10.77997,137.51,137.5,2.9324173]
[1764055237749,5.27458994,137.51,137.5,2.9324173]
[1764055238347,2.97369246,137.53,137.5,2.9324173]
[1764055238646,13.61619162,137.52,137.5,2.9324173]
[1764055238841,2.92,137.52,137.5,2.9324173]
[1764055239046,0.05369246,137.53,137.51,2.88]
[1764055239255,10.69425744,137.52,137.51,2.88]
[1764055239755,0.05369246,137.53,137.52,2.88]
[1764055239955,10.74400018,137.53,137.52,2.88]
[1764055240259,0.05369246,137.53,137.52,2.88]
[1764055240758,10.74029265,137.53,137.52,2.88]
[1764055241254,0.05369246,137.53,137.52,2.88]
[1764055254964,3.03,137.57,137.55,2.94]